lending/lending_fUSD_20240128
["ID","MTS","AMOUNT","RATE_DAILY","PERIOD"]
[312917808,1706460631528,-1258.70720484,0.00021775,2]
[312917809,1706460631537,-155.47622085,0.00021783,2]
[312917810,1706460631547,-300.0,0.00021982,2]
[312917811,1706460631556,-281.78051796,0.0002257,2]
[312917812,1706460631565,-2838.2458384,0.00022798,2]
[312917813,1706460631575,-354.42047342,0.00022798,2]
[312917814,1706460631584,-427.51848022,0.00022798,2]
[312917815,1706460631593,-375.98637531,0.00022798,2]
[312917816,1706460631602,-1418.81878163,0.00022798,2]
[312917817,1706460631611,-896.60943409,0.00022798,2]
[312917818,1706460631620,-418.87172383,0.00022798,2]
[312917819,1706460631630,-1815.4533037,0.00022798,2]
[312917820,1706460631639,-408.13209907,0.00022798,2]
[312917821,1706460631648,-280.07934432,0.00022799,2]
[312917822,1706460631657,-16956.7413,0.000228,2]
[312917824,1706460631666,-13721.09,0.00022804,2]
[312917826,1706460631675,-347.59,0.00022833,2]
[312917828,1706460631684,-250.0,0.00022847,2]
[312917830,1706460631693,-246.96,0.00022858,2]
[312917832,1706460631702,-317.49900821,0.00022865,2]
[312917834,1706460631712,-150.99,0.00022865,2]
[312917836,1706460631721,-3345.37,0.00022865,2]
[312917838,1706460631730,-499.99,0.00022865,2]
[312917840,1706460631739,-406.58798042,0.00022888,2]
[312917842,1706460631748,-362.07461193,0.00022888,2]
[312917844,1706460631757,-797.30628427,0.00022888,2]
[312917846,1706460631768,-313.98480548,0.00022888,2]
[312917848,1706460631777,-312.68730673,0.00022888,2]
[312917850,1706460631786,-473.80661658,0.00022888,2]
[312917852,1706460631795,-156.16077259,0.00022888,2]
[312917854,1706460631804,-337.96118982,0.00022888,2]
[312917856,1706460631814,-518.77564817,0.00022888,2]
[312917858,1706460631823,-386.35168148,0.00022888,2]
[312917861,1706460631832,-371.55318141,0.00022888,2]
[312917862,1706460631841,-240.30506348,0.00022888,2]
[312917864,1706460631851,-489.16849662,0.00022888,2]
[312917866,1706460631860,-1000.0,0.00022888,2]
[312917868,1706460631869,-57204.26513606,0.0002289,2]
[312917871,1706460631878,-296.44165808,0.00022898,2]
[312917873,1706460631887,-233.42707403,0.00022898,2]
[312917875,1706460631896,-343.64376073,0.00022898,2]
[312917877,1706460631906,-159.09532459,0.00022898,2]
[312917879,1706460631915,-306.47983729,0.00022898,2]
[312917881,1706460631924,-301.90759336,0.00022898,2]
[312917883,1706460631933,-201.26413179,0.00022898,2]
[312917884,1706460631943,-364.29623215,0.00022898,2]
[312917887,1706460631952,-345.0,0.00022898,2]
[312917889,1706460631961,-165.85001862,0.00022898,2]
[312917891,1706460631971,-400.0,0.00022898,2]
[312917893,1706460631984,-302.84837453,0.00022898,2]
[312917895,1706460631993,-357.56481988,0.00022898,2]
[312917897,1706460632002,-506.75669678,0.00022898,2]
[312917899,1706460632012,-377.4197172,0.00022898,2]
[312917901,1706460632021,-696.67625006,0.00022898,2]
[312917903,1706460632030,-235.4251833,0.00022898,2]
[312917905,1706460632040,-253.49547449,0.00022899,2]
[312917907,1706460632049,-594.65817432,0.00022899,2]
[312917909,1706460632058,-3303.73110402,0.00022899,2]
[312917911,1706460632067,-27147.2624,0.000229,2]
[312917913,1706460632077,-1484.4,0.0002295,2]
[312917915,1706460632086,-150.0,0.00023,2]
[312917917,1706460632095,-1720.25,0.00023129,2]
[312917919,1706460632104,-200.0,0.00023167,2]
[312917921,1706460632113,-200.0,0.00023167,2]
[312917923,1706460632123,-200.0,0.00023167,2]
[312917925,1706460632133,-164.0,0.00023167,2]
[312917927,1706460632142,-259.76,0.00023244,2]
[312917929,1706460632151,-750.0,0.00023287,2]
[312917931,1706460632160,-500.0,0.00023308,2]
[312917933,1706460632170,-1037.48,0.00023314,2]
[312917935,1706460632180,-500.0,0.00023327,2]
[312917937,1706460632189,-5195.21862892,0.00023374,2]
[312917974,1706460632599,-18704.78137108,0.00023374,2]
[312917975,1706460632609,-2000.0,0.00023395,2]
[312917976,1706460632622,-1830.51,0.00023415,2]
[312917978,1706460632631,-164.0,0.00023548,2]
[312917980,1706460632640,-224.24,0.00023664,2]
[312917982,1706460632649,-164.0,0.00023753,2]
[312917984,1706460632658,-164.0,0.00023957,2]
[312917986,1706460632667,-155.77210783,0.00024,2]
[312917988,1706460632676,-164.0,0.00024162,2]
[312917990,1706460632685,-167.0,0.00024297,2]
[312917992,1706460632694,-164.0,0.00024366,2]
[312917994,1706460632703,-7584.15,0.00024384,2]
[312917996,1706460632712,-164.0,0.00024571,2]
[312917998,1706460632721,-250.0,0.00024658,2]
[312918000,1706460632730,-167.0,0.00024733,2]
[312918002,1706460632739,-164.0,0.00024775,2]
[312918004,1706460632748,-1000.0,0.000248,2]
[312918006,1706460632757,-1037.48,0.00024958,2]
[312918008,1706460632767,-5221.64,0.0002498,2]
[312918010,1706460632776,-167.53295169,0.00025,2]
[312918012,1706460632785,-1903.74995284,0.00025,2]
[312918014,1706460632795,-202.44241992,0.00025,2]
[312918016,1706460632804,-1587.22750165,0.00025,2]
[312918018,1706460632813,-304.11862422,0.00025,2]
[312918020,1706460632822,-159.97415907,0.00025,2]
[312918022,1706460632831,-935.55189282,0.00025,2]
[312918024,1706460632841,-550.0,0.00025,3]
[312918026,1706460632850,-826.7646,0.0002536,2]
[312918028,1706460632861,-1769.93759612,0.0002546,2]
[312918030,1706460632870,-155.0,0.0002546,2]
[312918032,1706460632879,-641.96554041,0.0002546,2]
[312918034,1706460632889,-501.74130467,0.00025461,2]
[312918036,1706460632898,-697.28885181,0.00025461,2]
[312918038,1706460632907,-346.74,0.00025613,2]
[312918040,1706460632917,-224.24,0.00025928,2]
[312918042,1706460632926,-150.0,0.00026079,2]
[312918044,1706460632936,-942.03003609,0.00026335,2]
[312918046,1706460632945,-3865.7058748,0.00026336,2]
[312918049,1706460632954,-1349.63067611,0.00026422,3]
[312918050,1706460632964,-346.74,0.00026519,2]
[312918053,1706460632973,-928.32146143,0.0002652,2]
[312918055,1706460632982,-202.91523791,0.00026521,2]
[312918057,1706460632991,-759.43433451,0.00026521,2]
[312918059,1706460633000,-1049.2278981,0.00026521,2]
[312918061,1706460633012,-543.55682798,0.00026521,2]
[312918063,1706460633021,-2148.1042989,0.00026521,2]
[312918065,1706460633031,-155.0,0.00026521,2]
[312918067,1706460633040,-349.7261996,0.00026521,2]
[312918069,1706460633049,-203.12390135,0.00026521,2]
[312918070,1706460633058,-155.65924392,0.00026521,2]
[312918071,1706460633068,-1711.28766055,0.00026521,2]
[312918072,1706460633078,-24036.28835478,0.00026521,2]
[312918073,1706460633087,-249.04508672,0.00026521,2]
[312918074,1706460633096,-12140.7232708,0.00026521,2]
[312918075,1706460633118,-24222.77078386,0.00026521,2]
[312918076,1706460633133,-6042.59281867,0.00026521,2]
[312918077,1706460633156,-980.65191279,0.00026521,2]
[312918100,1706460637346,-280.0,0.00026521,2]
[312918101,1706460637358,-6267.08146283,0.00026521,2]
[312918102,1706460637515,-1249.65,0.00026521,2]
[312918103,1706460637526,-506.80598063,0.00026521,2]
[312918104,1706460637538,-310.05792943,0.00026521,2]
[312918105,1706460637638,-3638.39612994,0.00026521,2]
[312918106,1706460637650,-368.57217243,0.00026521,2]
[312918107,1706460637661,-1669.89312,0.00026521,2]
[312918420,1706460640799,-929.13468914,0.00026521,2]
[312918421,1706460640826,-4801.01390168,0.00026521,2]
[312918422,1706460640843,-6023.42845097,0.00026521,2]
[312918424,1706460642400,-960.45152962,0.00026521,2]
[312918425,1706460642413,-167655.49376923,0.00026521,2]
[312918426,1706460642422,-4641.49847148,0.00026522,2]
[312918427,1706460642431,-1037.48,0.00026602,2]
[312918428,1706460642441,-208.0,0.00026639,2]
[312918429,1706460642450,-165.64335444,0.00027,2]
[312918430,1706460642459,-600.0,0.00027,3]
[312918431,1706460642469,-3854.0,0.000271,2]
[312918432,1706460642478,-6612.0,0.000273,2]
[312918433,1706460642488,-174.76,0.00027397,2]
[312918434,1706460642497,-162.11,0.00027397,2]
[312918435,1706460642507,-2254.02,0.00027397,2]
[312918436,1706460642516,-346.74,0.00027425,2]
[312918437,1706460642525,-1000.0,0.00027439,2]
[312918438,1706460642535,-2254.02,0.00027556,2]
[312918439,1706460642544,-2470.973,0.00027627,2]
[312918440,1706460642554,-387.0,0.00027627,2]
[312918441,1706460642563,-1361.0,0.00027627,2]
[312918442,1706460642573,-3090.987,0.00027627,2]
[312918443,1706460642582,-1859.0,0.00027627,2]
[312918444,1706460642591,-948.0,0.00027627,2]
[312918445,1706460642601,-838.0,0.00027627,2]
[312918446,1706460642610,-253.084,0.00027627,2]
[312918447,1706460642619,-1233.0,0.00027627,2]
[312918448,1706460642628,-625.693,0.00027627,2]
[312918449,1706460642638,-1062.279,0.00027627,2]
[312918450,1706460642647,-241.673,0.00027627,2]
[312918451,1706460642657,-1939.0,0.00027627,2]
[312918452,1706460642666,-463.538,0.00027627,2]
[312918453,1706460642675,-151.32,0.00027627,2]
[312918454,1706460642684,-322.365,0.00027627,2]
[312918455,1706460642693,-851.879,0.00027627,2]
[312918456,1706460642702,-210.0,0.00027627,2]
[312918457,1706460642712,-5888.336,0.00027627,2]
[312918458,1706460642721,-2912.0,0.00027627,2]
[312918459,1706460642730,-19753.0,0.00027627,2]
[312918460,1706460642740,-2363.239,0.00027627,2]
[312918461,1706460642749,-168.563,0.00027627,2]
[312918462,1706460642758,-5606.504,0.00027627,2]
[312918463,1706460642768,-2276.0,0.00027627,2]
[312918464,1706460642777,-4187.0,0.00027627,2]
[312918465,1706460642786,-150.0,0.00027627,2]
[312918466,1706460642795,-1032.0,0.00027627,2]
[312918467,1706460642805,-3611.92,0.00027671,2]
[312918468,1706460642814,-2254.02,0.00027714,2]
[312918469,1706460642823,-2254.02,0.00027872,2]
[312918470,1706460642833,-239.68782377,0.0002799,2]
[312918471,1706460642843,-129623.76667981,0.00028,2]
[312918472,1706460642852,-689.05942203,0.00028,2]
[312918473,1706460642862,-2254.02,0.0002803,2]
[312918474,1706460642871,-2254.02,0.00028189,2]
[312918475,1706460642880,-224.24,0.00028192,2]
[312918476,1706460642890,-1037.48,0.00028245,2]
[312918477,1706460642900,-346.74,0.0002833,2]
[312918478,1706460642909,-2254.02,0.00028347,2]
[312918479,1706460642918,-2254.02,0.00028505,2]
[312918480,1706460642928,-2254.02,0.00028664,2]
[312918481,1706460642938,-3611.92,0.00028695,2]
[312918482,1706460642947,-2254.02,0.00028822,2]
[312918483,1706460642956,-2067.72983195,0.0002888,2]
[312918484,1706460642965,-156.79254926,0.00029,2]
[312918485,1706460642973,-650.0,0.00029,3]
[312918486,1706460642983,-9156.73876882,0.00029189,2]
[312918487,1706460642992,-346.74,0.00029236,2]
[312918488,1706460643001,-164.94589148,0.00029661,2]
[312918489,1706460643010,-3611.92,0.00029719,2]
[312918490,1706460643020,-175.84884344,0.000298,2]
[312918491,1706460643029,-1037.48,0.00029889,2]
[312918492,1706460643038,-1810.6484529,0.0003,4]
[312918493,1706460643048,-463.73170874,0.0003,4]
[312918494,1706460643056,-338.2177,0.0003,4]
[312918495,1706460643065,-2106.70936519,0.0003,4]
[312918496,1706460643078,-341.04,0.0003,4]
[312918497,1706460643093,-721.91411043,0.0003,4]
[312918498,1706460643105,-782.76003,0.0003,4]
[312918499,1706460643331,-453.02011,0.0003,4]
[312918500,1706460643343,-503.0,0.0003,4]
[312918501,1706460643355,-765.54556104,0.0003,4]
[312918506,1706460645462,-1257.66975103,0.0002652,2]
[312918507,1706460645472,-596.38642134,0.0002652,2]
[312918508,1706460645481,-386.51477756,0.0002652,2]
[312918509,1706460645490,-104720.40493121,0.0003,4]
[312918510,1706460645499,-693.05480847,0.0003,2]
[312918511,1706460645509,-9639.56910486,0.0003,2]
[312918512,1706460645518,-709.32799726,0.0003,2]
[312918513,1706460645528,-174.76,0.00030137,2]
[312918514,1706460645537,-154.43,0.00030137,2]
[312918515,1706460645547,-346.74,0.00030142,2]
[312918516,1706460645557,-1349.63067609,0.0003019,4]
[312918517,1706460645567,-150.0,0.00030449,7]
[312918518,1706460645577,-224.24,0.00030456,2]
[312918519,1706460645586,-220.545,0.00030627,2]
[312918520,1706460645595,-495.331,0.00030627,2]
[312918521,1706460645605,-951.43,0.00030627,2]
[312918522,1706460645614,-948.0,0.00030627,2]
[312918523,1706460645623,-838.0,0.00030627,2]
[312918524,1706460645633,-1225.0,0.00030627,2]
[312918525,1706460645642,-1379.284,0.00030627,2]
[312918526,1706460645651,-150.0,0.00030627,2]
[312918527,1706460645660,-210.0,0.00030627,2]
[312918528,1706460645669,-2901.0,0.00030627,2]
[312918529,1706460645678,-19753.0,0.00030627,2]
[312918530,1706460645687,-3043.7,0.00030627,2]
[312918531,1706460645696,-1032.0,0.00030627,2]
[312918532,1706460645705,-3611.92,0.00030743,2]
[312918533,1706460645721,-1000.0,0.00030868,2]
[312918534,1706460645730,-700.0,0.00031,3]
[312918535,1706460645739,-346.74,0.00031048,2]
[312918536,1706460645748,-160.17758008,0.00031433,3]
[312918537,1706460645757,-1037.48,0.00031533,2]
[312918538,1706460645767,-180.0,0.00031644,2]
[312918539,1706460645777,-185.2,0.00031644,2]
[312918540,1706460645787,-2000.0,0.000317,4]
[312918541,1706460645797,-152.84125993,0.0003175,2]
[312918543,1706460645806,-3611.92,0.00031767,2]
[312918545,1706460645815,-61688.08424434,0.000318,2]
[312918647,1706460646869,-1951.59398939,0.000318,2]
[312918649,1706460646881,-159459.00455827,0.000318,2]
[312918651,1706460646890,-4320.26029508,0.0003185,3]
[312918653,1706460646899,-13154.96284111,0.00032,4]
[312918655,1706460646908,-375.20474217,0.00032,2]
[312918657,1706460646917,-155.63641055,0.00032,2]
[312918659,1706460646927,-246.96,0.00032001,2]
[312918661,1706460646936,-202.30089417,0.000325,2]
[312918663,1706460646944,-224.24,0.0003272,2]
[312918665,1706460646953,-174.76,0.00032877,2]
[312918667,1706460646963,-750.0,0.00033,3]
[312918669,1706460646972,-492.0,0.00033356,5]
[312918671,1706460646981,-157.57078744,0.000334,4]
[312918673,1706460646990,-941.0,0.00033627,2]
[312918675,1706460646999,-833.0,0.00033627,2]
[312918677,1706460647007,-150.0,0.00033627,2]
[312918679,1706460647016,-207.0,0.00033627,2]
[312918681,1706460647026,-13335.636,0.00033627,2]
[312918683,1706460647035,-881.722,0.00033627,2]
[312918685,1706460647044,-152.84125981,0.0003383,2]
[312918687,1706460647052,-4320.26029504,0.000339,6]
[312918689,1706460647061,-1349.63067609,0.00033959,6]
[312918691,1706460647070,-507.45614282,0.00034,4]
[312918693,1706460647079,-1000.0,0.00034298,2]
[312918695,1706460647088,-350.0,0.00034421,2]
[312918697,1706460647097,-500.0,0.00034421,2]
[312918699,1706460647106,-500.0,0.00034421,2]
[312918701,1706460647115,-500.0,0.00034421,2]
[312918703,1706460647123,-500.0,0.00034421,2]
[312918705,1706460647135,-500.0,0.00034421,2]
[312918706,1706460647144,-500.0,0.00034421,2]
[312918708,1706460647153,-500.0,0.00034421,2]
[312918710,1706460647162,-500.0,0.00034421,2]
[312918712,1706460647171,-500.0,0.00034421,2]
[312918714,1706460647179,-500.0,0.00034421,2]
[312918716,1706460647188,-500.0,0.00034421,2]
[312918718,1706460647197,-500.0,0.00034421,2]
[312918720,1706460647206,-500.0,0.00034421,2]
[312918722,1706460647215,-500.0,0.00034421,2]
[312918724,1706460647225,-500.0,0.00034421,2]
[312918726,1706460647235,-500.0,0.00034421,2]
[312918728,1706460647243,-500.0,0.00034421,2]
[312918730,1706460647253,-500.0,0.00034421,2]
[312918732,1706460647261,-500.0,0.00034421,2]
[312918734,1706460647270,-500.0,0.00034421,2]
[312918736,1706460647280,-500.0,0.00034421,2]
[312918737,1706460647289,-500.0,0.00034421,2]
[312918739,1706460647298,-500.0,0.00034421,2]
[312918741,1706460647307,-500.0,0.00034421,2]
[312918743,1706460647317,-500.0,0.00034421,2]
[312918746,1706460647326,-500.0,0.00034421,2]
[312918747,1706460647335,-500.0,0.00034421,2]
[312918749,1706460647343,-500.0,0.00034421,2]
[312918751,1706460647353,-500.0,0.00034421,2]
[312918753,1706460647362,-500.0,0.00034421,2]
[312918755,1706460647371,-500.0,0.00034421,2]
[312918757,1706460647380,-500.0,0.00034421,2]
[312918759,1706460647389,-500.0,0.00034421,2]
[312918761,1706460647398,-500.0,0.00034421,2]
[312918763,1706460647407,-500.0,0.00034421,2]
[312918765,1706460647416,-500.0,0.00034421,2]
[312918767,1706460647425,-500.0,0.00034421,2]
[312918769,1706460647434,-500.0,0.00034421,2]
[312918770,1706460647443,-500.0,0.00034421,2]
[312918771,1706460647452,-500.0,0.00034421,2]
[312918772,1706460647461,-500.0,0.00034421,2]
[312918773,1706460647470,-500.0,0.00034421,2]
[312918774,1706460647480,-500.0,0.00034421,2]
[312918775,1706460647488,-500.0,0.00034421,2]
[312918776,1706460647498,-500.0,0.00034421,2]
[312918777,1706460647507,-500.0,0.00034421,2]
[312918778,1706460647516,-500.0,0.00034421,2]
[312918779,1706460647528,-500.0,0.00034421,2]
[312918780,1706460647537,-500.0,0.00034421,2]
[312918781,1706460647546,-500.0,0.00034421,2]
[312918782,1706460647555,-500.0,0.00034421,2]
[312918783,1706460647564,-500.0,0.00034421,2]
[312918784,1706460647573,-500.0,0.00034421,2]
[312918785,1706460647582,-500.0,0.00034421,2]
[312918786,1706460647591,-500.0,0.00034421,2]
[312918787,1706460647599,-500.0,0.00034421,2]
[312918788,1706460647608,-500.0,0.00034421,2]
[312918789,1706460647617,-500.0,0.00034421,2]
[312918790,1706460647626,-500.0,0.00034421,2]
[312918791,1706460647635,-500.0,0.00034421,2]
[312918792,1706460647643,-500.0,0.00034421,2]
[312918793,1706460647652,-500.0,0.00034421,2]
[312918794,1706460647661,-500.0,0.00034421,2]
[312918795,1706460647670,-500.0,0.00034421,2]
[312918796,1706460647680,-500.0,0.00034421,2]
[312918797,1706460647688,-500.0,0.00034421,2]
[312918798,1706460647697,-500.0,0.00034421,2]
[312918799,1706460647707,-500.0,0.00034421,2]
[312918800,1706460647718,-500.0,0.00034421,2]
[312918801,1706460647727,-500.0,0.00034421,2]
[312918802,1706460647737,-500.0,0.00034421,2]
[312918803,1706460647746,-500.0,0.00034421,2]
[312918804,1706460647756,-500.0,0.00034421,2]
[312918805,1706460647765,-500.0,0.00034421,2]
[312918806,1706460647774,-500.0,0.00034421,2]
[312918807,1706460647784,-500.0,0.00034421,2]
[312918808,1706460647793,-500.0,0.00034421,2]
[312918809,1706460647803,-500.0,0.00034421,2]
[312918810,1706460647813,-500.0,0.00034421,2]
[312918811,1706460647824,-500.0,0.00034421,2]
[312918812,1706460647834,-500.0,0.00034421,2]
[312918813,1706460647844,-500.0,0.00034421,2]
[312918814,1706460647853,-500.0,0.00034421,2]
[312918815,1706460647862,-500.0,0.00034421,2]
[312918816,1706460647870,-500.0,0.00034421,2]
[312918817,1706460647880,-500.0,0.00034421,2]
[312918818,1706460647888,-500.0,0.00034421,2]
[312918819,1706460647897,-500.0,0.00034421,2]
[312918820,1706460647906,-500.0,0.00034421,2]
[312918821,1706460647915,-500.0,0.00034421,2]
[312918822,1706460647924,-500.0,0.00034421,2]
[312918823,1706460647933,-500.0,0.00034421,2]
[312918824,1706460647942,-500.0,0.00034421,2]
[312918825,1706460647951,-500.0,0.00034421,2]
[312918826,1706460647960,-500.0,0.00034421,2]
[312918827,1706460647968,-500.0,0.00034421,2]
[312918828,1706460647977,-500.0,0.00034421,2]
[312918829,1706460647986,-500.0,0.00034421,2]
[312918830,1706460647996,-150.0,0.00034548,10]
[312918831,1706460648006,-516.463283,0.000349,2]
[312918832,1706460648015,-516.46328289,0.000349,2]
[312918833,1706460648026,-516.46328289,0.000349,2]
[312918834,1706460648035,-516.46328289,0.000349,2]
[312918835,1706460648045,-516.46328289,0.000349,2]
[312918836,1706460648054,-5000.0,0.000349,3]
[312918837,1706460648063,-208.0,0.0003498,16]
[312918838,1706460648071,-224.24,0.00034984,2]
[312918839,1706460648080,-160.49274678,0.00034997,2]
[312918840,1706460648089,-904.18499998,0.00035,4]
[312918841,1706460648098,-5000.0,0.00035,3]
[312918842,1706460648107,-155.00000018,0.00035,4]
[312918843,1706460648116,-214027.71465624,0.00035,2]
[312918844,1706460648126,-155.0,0.00035,4]
[312918845,1706460648143,-800.0,0.00035,3]
[312918846,1706460648153,-1810.76,0.00035237,5]
[312918847,1706460648162,-516.46328289,0.00035267,2]
[312918848,1706460648171,-150.0,0.00035616,2]
[312918849,1706460648180,-159.07215656,0.00035616,7]
[312918850,1706460648189,-174.76,0.00035616,2]
[312918851,1706460648198,-7584.15,0.00035616,2]
[312918852,1706460648208,-162.11,0.00035616,2]
[312918853,1706460648218,-154.43,0.00035616,2]
[312918854,1706460648227,-1490.0,0.000359,12]
[312918855,1706460648235,-152.84125981,0.0003591,2]
[312918856,1706460648244,-4320.26029504,0.0003595,8]
[312918857,1706460648253,-298.08959021,0.00036,4]
[312918858,1706460648262,-516.46328289,0.00036861,2]
[312918859,1706460648271,-235.89308219,0.000369,2]
[312918860,1706460648280,-850.0,0.00037,3]
[312918861,1706460648290,-224.24,0.00037247,2]
[312918862,1706460648300,-161.43,0.000377,3]
[312918863,1706460648310,-161.43,0.000377,3]
[312918864,1706460648319,-161.43,0.000377,3]
[312918865,1706460648329,-161.43,0.000377,3]
[312918866,1706460648338,-161.43,0.000377,3]
[312918867,1706460648347,-161.43,0.000377,3]
[312918868,1706460648356,-161.43,0.000377,3]
[312918869,1706460648365,-161.43,0.000377,3]
[312918870,1706460648374,-161.43,0.000377,3]
[312918871,1706460648383,-161.43,0.000377,3]
[312918872,1706460648392,-161.43,0.000377,3]
[312918873,1706460648401,-161.43,0.000377,3]
[312918874,1706460648411,-161.43,0.000377,3]
[312918875,1706460648420,-161.43,0.000377,3]
[312918876,1706460648429,-161.43,0.000377,3]
[312918877,1706460648438,-161.43,0.000377,3]
[312918878,1706460648447,-161.43,0.000377,3]
[312918879,1706460648456,-161.43,0.000377,3]
[312918880,1706460648466,-161.43,0.000377,3]
[312918881,1706460648475,-161.43,0.000377,3]
[312918882,1706460648484,-1349.63067609,0.00037727,8]
[312918883,1706460648493,-1000.0,0.00037728,2]
[312918884,1706460648502,-164.94589148,0.000378,2]
[312918885,1706460648511,-173.13503997,0.000378,2]
[312918886,1706460648522,-204.52244455,0.000378,7]
[312918887,1706460648531,-1660.28056991,0.000378,2]
[312918888,1706460648541,-1195.72739946,0.000378,2]
[312918889,1706460648550,-276.69,0.000379,7]
[312918890,1706460648559,-2091.85811876,0.000379,2]
[312918891,1706460648568,-494867.23468705,0.000379,2]
[312918892,1706460648582,-21502.33969152,0.000379,2]
[312918893,1706460648593,-418.84953567,0.000379,2]
[312918894,1706460648637,-6378.08816799,0.000379,2]
[312918895,1706460648649,-32098.5378924,0.000379,2]
[312918896,1706460648661,-14438.28051937,0.000379,2]
[312918897,1706460648671,-150.0,0.000379,12]
[312918898,1706460648680,-1000.0,0.000379,25]
[312918899,1706460648689,-152.84125981,0.00037991,2]
[312918900,1706460648698,-4320.26029504,0.00038,11]
[312918901,1706460648870,-200.0,0.00038374,7]
[312918902,1706460648881,-800.0,0.00038374,8]
[312918903,1706460648890,-516.46328289,0.00038455,2]
[312918904,1706460648899,-224.24,0.00039511,2]
[312918905,1706460648909,-500.0,0.00039999,31]
[312918906,1706460648921,-500.0,0.00039999,31]
[312918907,1706460648931,-500.0,0.00039999,31]
[312918908,1706460648941,-443.16965458,0.00039999,31]
[312918909,1706460648952,-500.0,0.00039999,31]
[312918910,1706460648962,-500.0,0.00039999,31]
[312918911,1706460648972,-500.0,0.00039999,31]
[312918912,1706460648981,-500.0,0.00039999,31]
[312918913,1706460648989,-500.0,0.00039999,31]
[312918914,1706460648998,-255.0,0.00039999,31]
[312918915,1706460649007,-500.0,0.00039999,31]
[312918916,1706460649017,-500.0,0.00039999,31]
[312918917,1706460649026,-500.0,0.00039999,31]
[312918918,1706460649035,-500.0,0.00039999,31]
[312918919,1706460649045,-500.0,0.00039999,31]
[312918920,1706460649056,-500.0,0.00039999,31]
[312918921,1706460649065,-500.0,0.00039999,31]
[312918922,1706460649074,-223.2080993,0.00039999,31]
[312918923,1706460649083,-156.91863583,0.0004,4]
[312918924,1706460649092,-183.94752541,0.0004,4]
[312918925,1706460649101,-5000.0,0.0004,10]
[312918926,1706460649110,-516.46328289,0.00040049,5]
[312918927,1706460649119,-4320.26029504,0.0004005,13]
[312918928,1706460649132,-152.84125981,0.00040071,6]
[312918929,1706460649142,-1477.76205041,0.00040274,3]
[312918930,1706460649151,-1815.2,0.00040625,5]
[312918931,1706460649160,-1307.641542,0.00040627,2]
[312918932,1706460649170,-175.491965,0.00040627,2]
[312918933,1706460649180,-181.200001,0.00040627,2]
[312918934,1706460649190,-9629.130551,0.00040627,2]
[312918935,1706460649199,-4000.672418,0.00040627,2]
[312918936,1706460649209,-173.104973,0.00040627,2]
[312918937,1706460649219,-282.710018,0.00040627,2]
[312918938,1706460649228,-191.798138,0.00040627,2]
[312918939,1706460649238,-493.14134125,0.00040683,4]
[312918940,1706460649246,-712.72994755,0.00040865,13]
[312918941,1706460649257,-276.69,0.000409,7]
[312918942,1706460649266,-57982.3221535,0.0004109,7]
[312918944,1706460694322,661.11586812,0.0002162,2]
[312918945,1706460696546,2030.0383791,0.00011,2]
[312918946,1706460726344,3504.77188848,0.000199,3]
[312918947,1706460728608,-524.86593909,0.00021688,2]
[312918948,1706460728629,-1785.38962774,0.00021689,2]
[312918949,1706460728651,-292.70291374,0.00021998,2]
[312918950,1706460728672,-260.70555078,0.00021999,2]
[312918951,1706460728693,-2907.57194217,0.00021999,2]